bitfinex-derivatives/quotes_BTCF0:USTF0_20250327
["timestamp","ask_amount","ask_price","bid_price","bid_amount"]
[1743088883232,0.1143245,87486.0,87485.0,0.4618794]
[1743088883423,0.1143363,87477.0,87476.0,0.3608]
[1743088883625,0.1143481,87468.0,87467.0,0.0928]
[1743088883826,0.1143533,87464.0,87463.0,0.2002952]
[1743088884028,0.0006,87464.0,87463.0,0.3146498]
[1743088884332,0.1103533,87464.0,87463.0,0.4428714]
[1743088884628,0.1116733,87464.0,87463.0,0.4428714]
[1743088885222,0.1116733,87464.0,87463.0,0.45151724]
[1743088885729,0.00132,87464.0,87463.0,0.45151724]
[1743088885928,0.1143533,87464.0,87463.0,0.45151724]
[1743088886131,0.00132,87464.0,87463.0,0.45151724]
[1743088886324,0.1143533,87464.0,87463.0,0.45151724]
[1743088886530,0.1156733,87464.0,87463.0,0.39434104]
[1743088887328,0.1156733,87464.0,87463.0,0.50869564]
[1743088887635,0.1143533,87464.0,87463.0,0.39434104]
[1743088887933,0.1143533,87464.0,87463.0,0.19404584]
[1743088888230,0.1156733,87464.0,87463.0,0.19404584]
[1743088888629,0.1156733,87464.0,87463.0,0.10124584]
[1743088889022,0.1156733,87464.0,87463.0,0.0006]
[1743088889323,0.1156733,87464.0,87429.0,0.4667989]
[1743088889324,0.1143664,87454.0,87440.0,0.00788321]
[1743088889632,0.1143834,87441.0,87440.0,0.00788321]
[1743088889832,0.1157034,87441.0,87440.0,0.00788321]
[1743088890330,0.1143938,87433.0,87432.0,0.0909]
[1743088890533,0.1143938,87433.0,87432.0,0.09167152]
[1743088890732,0.1157138,87433.0,87432.0,0.09167152]
[1743088890935,0.1157138,87433.0,87432.0,0.20606662]
[1743088891132,0.1157138,87433.0,87432.0,0.00077152]
[1743088891326,0.3068138,87433.0,87432.0,0.00077152]
[1743088891726,0.3068138,87433.0,87432.0,0.11516662]
[1743088891926,0.3078138,87433.0,87432.0,0.11516662]
[1743088892636,0.19342,87433.0,87432.0,0.11516662]
[1743088892933,0.2110138,87433.0,87432.0,0.11516662]
[1743088893139,0.2120138,87433.0,87432.0,0.20886662]
[1743088893924,0.2120138,87433.0,87432.0,0.09447152]
[1743088894236,0.2120138,87433.0,87432.0,0.00077152]
[1743088895328,0.2110138,87433.0,87432.0,0.00077152]
[1743088895535,0.2110138,87433.0,87428.0,0.3608]
[1743088895536,0.1144069,87423.0,87422.0,0.2002952]
[1743088895735,0.11596691,87423.0,87422.0,0.2002952]
[1743088896434,0.29536691,87423.0,87422.0,0.2002952]
[1743088896634,0.29536691,87423.0,87422.0,0.3147034]
[1743088896944,0.1144095,87421.0,87420.0,0.0572054]
[1743088897245,0.1144121,87419.0,87418.0,0.1144127]
[1743088897454,0.1158921,87419.0,87418.0,0.1144127]
[1743088897644,0.1144148,87417.0,87416.0,0.1481079]
[1743088897938,0.1158948,87417.0,87416.0,0.1481079]
[1743088898540,0.2091948,87417.0,87416.0,0.1481079]
[1743088899738,0.1144174,87415.0,87414.0,0.00011477]
[1743088899934,0.1159374,87415.0,87414.0,0.00011477]
[1743088900143,0.1159374,87415.0,87414.0,0.11453347]
[1743088900443,0.1159374,87415.0,87414.0,0.00011477]
[1743088901537,0.59113489,87415.0,87414.0,0.00011477]
[1743088901842,0.1144252,87409.0,87408.0,0.00171601]
[1743088902044,0.1159052,87409.0,87408.0,0.00171601]
[1743088903046,0.1169052,87409.0,87408.0,0.11614251]
[1743088903542,0.1169052,87409.0,87408.0,0.00171601]
[1743088903741,0.1169052,87409.0,87408.0,0.09371601]
[1743088904747,0.1169052,87409.0,87408.0,0.00171601]
[1743088905139,0.1144344,87402.0,87401.0,0.092]
[1743088905451,0.1159144,87402.0,87401.0,0.092]
[1743088906339,0.1159144,87402.0,87401.0,0.2064357]
[1743088906545,0.1179144,87402.0,87401.0,0.2064357]
[1743088906746,0.002,87402.0,87401.0,0.21498607]
[1743088906949,0.1164344,87402.0,87401.0,0.21498607]
[1743088908454,8e-05,87409.0,87408.0,0.1144265]
[1743088908647,0.00152,87409.0,87408.0,0.4752265]
[1743088908839,0.00017162,87410.0,87409.0,0.1144252]
[1743088909052,0.00165162,87410.0,87409.0,0.1144252]
[1743088909254,0.00017162,87410.0,87409.0,0.2059252]
[1743088910047,0.11459552,87410.0,87409.0,0.2059252]
[1743088910239,0.11611552,87410.0,87409.0,0.0915]
[1743088910654,0.20871552,87410.0,87409.0,0.0915]
[1743088911049,0.20871552,87410.0,87409.0,0.1817]
[1743088911251,0.20871552,87410.0,87409.0,0.2961252]
[1743088911552,0.11611552,87410.0,87409.0,0.2961252]
[1743088911752,0.11711552,87410.0,87409.0,0.2971252]
[1743088912150,0.21391552,87410.0,87409.0,0.2971252]
[1743088912459,0.30601552,87410.0,87409.0,0.1817]
[1743088912645,0.30601552,87410.0,87409.0,0.1827]
[1743088913145,0.30601552,87410.0,87409.0,0.2971252]
[1743088913547,0.11611552,87410.0,87409.0,0.1827]
[1743088913855,0.11611552,87410.0,87409.0,0.0912]
[1743088914053,0.30601552,87410.0,87409.0,0.0912]
[1743088914259,0.30601552,87410.0,87409.0,0.2056252]
[1743088915752,0.30601552,87410.0,87409.0,0.0912]
[1743088916653,0.30601552,87410.0,87409.0,0.2056252]
[1743088917255,0.30601552,87410.0,87409.0,0.2983252]
[1743088917757,0.30601552,87410.0,87409.0,0.3062302]
[1743088918149,0.21291552,87410.0,87409.0,0.3062302]
[1743088918948,0.1419951,88165.0,87409.0,1.42060388]
[1743088918949,0.0571854,87451.0,87409.0,1.42060388]
[1743088919157,0.1144647,87440.0,87439.0,0.114386]
[1743088919352,8e-05,87440.0,87439.0,0.595826]
[1743088919548,8e-05,87440.0,87439.0,0.784526]
[1743088919749,0.1143812,87443.0,87442.0,0.1143821]
[1743088919950,0.148884,87453.0,87443.0,0.1143807]
[1743088920151,0.0571816,87457.0,87453.0,0.1143677]
[1743088920152,0.1533726,87454.0,87453.0,0.1143677]
[1743088920463,0.2677395,87454.0,87453.0,0.1143677]
[1743088920757,0.26877951,87454.0,87453.0,0.1149677]
[1743088921160,0.26877951,87454.0,87453.0,0.1888]
[1743088921654,0.26877951,87454.0,87453.0,0.3025677]
[1743088921859,0.15441261,87454.0,87453.0,0.31217151]
[1743088922052,0.26877901,87454.0,87453.0,0.31217151]
[1743088922249,0.268819,87454.0,87453.0,0.31217151]
[1743088922449,0.268819,87454.0,87453.0,0.19780381]
[1743088922661,0.1164464,87454.0,87453.0,0.31217151]
[1743088922959,0.1164464,87454.0,87453.0,0.31317151]
[1743088923160,0.2983464,87454.0,87453.0,0.31317151]
[1743088924654,0.09308,87454.0,87453.0,0.31317151]
[1743088924858,0.2063664,87454.0,87453.0,0.31317151]
[1743088925060,0.20848641,87454.0,87453.0,0.31217151]
[1743088925259,0.20848641,87454.0,87453.0,0.31317151]
[1743088925453,0.21355202,87454.0,87453.0,0.31317151]
[1743088925853,0.21355202,87454.0,87453.0,0.31217151]
[1743088926260,0.21455202,87454.0,87453.0,0.31217151]
[1743088926865,0.20848641,87454.0,87453.0,0.31217151]
[1743088927349,0.20848641,87454.0,87453.0,0.19780381]
[1743088927551,0.1715645,87448.0,87445.0,0.1143773]
[1743088927753,0.05858771,87448.0,87447.0,0.1143745]
[1743088928050,0.05858771,87448.0,87447.0,0.1149745]
[1743088928652,0.05858771,87448.0,87447.0,0.12357489]
[1743088928854,0.15078771,87448.0,87447.0,0.12357489]
[1743088929249,0.057192,87441.0,87432.0,0.2002952]
[1743088929565,0.057192,87441.0,87427.0,0.2002952]
[1743088929566,0.1143912,87435.0,87427.0,0.2002952]
[1743088929860,0.11595121,87435.0,87427.0,0.2002952]
[1743088930049,0.23640459,87435.0,87427.0,0.2002952]
[1743088930456,0.23030553,87435.0,87427.0,0.2002952]
[1743088930855,0.23030553,87435.0,87427.0,0.3146963]
[1743088931050,0.11595121,87435.0,87430.0,0.4751974]
[1743088931366,0.11895121,87435.0,87431.0,0.1863]
[1743088931656,0.11895121,87435.0,87431.0,0.0922]
[1743088931861,0.12195121,87435.0,87431.0,0.0922]
[1743088932358,0.11995121,87435.0,87431.0,0.0922]
[1743088932562,0.11895121,87435.0,87430.0,0.3608]
[1743088933251,0.23332253,87435.0,87430.0,0.3608]
[1743088933658,0.23332253,87435.0,87431.0,0.0931]
[1743088933659,0.11895121,87435.0,87431.0,0.0931]
[1743088933853,0.11795121,87435.0,87431.0,0.0931]
[1743088934053,0.11995121,87435.0,87432.0,0.153597]
[1743088934259,0.11995121,87435.0,87434.0,0.11456412]
[1743088934462,0.11995121,87435.0,87434.0,0.00017162]
[1743088934661,0.11795121,87435.0,87434.0,2e-08]
[1743088934863,0.23332253,87435.0,87434.0,2e-08]
[1743088935567,0.23232253,87435.0,87434.0,2e-08]
[1743088935863,0.23432253,87435.0,87434.0,2e-08]
[1743088937264,0.23832253,87435.0,87434.0,2e-08]
[1743088937854,0.23332253,87435.0,87434.0,2e-08]
[1743088938060,0.23632253,87435.0,87434.0,2e-08]
[1743088938263,0.38632253,87435.0,87434.0,2e-08]
[1743088938451,0.38732253,87435.0,87434.0,2e-08]
[1743088938764,0.39580849,87435.0,87434.0,2e-08]
[1743088939268,0.0572077,87417.0,87406.0,0.0974]
[1743088939467,0.1144252,87409.0,87408.0,0.0923]
[1743088939656,0.1159452,87409.0,87408.0,0.0923]
[1743088940360,0.12214373,87409.0,87408.0,0.0923]
[1743088940868,0.1159452,87409.0,87408.0,0.0923]
[1743088941859,0.1159452,87409.0,87408.0,0.0933]
[1743088942055,0.2046452,87409.0,87408.0,0.0933]
[1743088943861,0.1159452,87409.0,87408.0,0.0933]
[1743088944366,0.1159452,87409.0,87408.0,0.2077265]
[1743088945056,0.1159452,87409.0,87408.0,0.2991265]
[1743088946959,0.00152,87409.0,87408.0,0.6599265]
[1743088947160,0.0572112,87412.0,87411.0,0.1144226]
[1743088947366,0.05721,87413.0,87412.0,0.1716287]
[1743088947567,0.1144194,87414.0,87413.0,0.1716287]
[1743088947874,0.1144194,87414.0,87413.0,0.3495287]
[1743088948059,0.1159394,87414.0,87413.0,0.23511]
[1743088948670,0.1159394,87414.0,87413.0,0.29232]
[1743088948857,0.1159394,87414.0,87413.0,0.1779]
[1743088949057,0.2059394,87414.0,87413.0,0.29332]
[1743088949263,0.2953394,87414.0,87413.0,0.29332]
[1743088949464,0.2059394,87414.0,87413.0,0.29332]
[1743088949759,0.1159394,87414.0,87413.0,0.29332]
[1743088950361,0.1159394,87414.0,87413.0,0.1789]
[1743088950865,0.1144344,87402.0,87389.0,0.3608]
[1743088951067,0.11599441,87402.0,87401.0,0.4752357]
[1743088951263,0.29539441,87402.0,87401.0,0.4752357]
[1743088951764,0.11599441,87402.0,87401.0,0.4752357]
[1743088952169,0.11599441,87402.0,87401.0,0.4762357]
[1743088952771,0.11599441,87402.0,87401.0,0.1154357]
[1743088953071,0.11599441,87402.0,87401.0,0.12169684]
[1743088953964,0.11599441,87402.0,87401.0,0.21249684]
[1743088954270,0.09668,87411.0,87403.0,0.1716483]
[1743088954271,0.1144327,87404.0,87403.0,0.1716483]
[1743088954457,0.0966,87411.0,87401.0,0.25307854]
[1743088954458,0.00152,87411.0,87408.0,0.1144265]
[1743088954664,0.057212,87410.0,87409.0,0.3021239]
[1743088954864,0.1716359,87410.0,87409.0,0.3021239]
[1743088955164,0.0965,87416.0,87409.0,0.3021239]
[1743088955165,0.1144164,87416.0,87415.0,0.1144161]
[1743088955468,0.1159364,87416.0,87415.0,0.1144161]
[1743088955662,0.1159364,87416.0,87415.0,0.3021161]
[1743088957669,0.1159364,87416.0,87415.0,0.30827691]
[1743088958169,0.1159364,87416.0,87415.0,0.3021161]
[1743088958170,0.2089364,87416.0,87415.0,0.3021161]
[1743088958364,0.3012364,87416.0,87415.0,0.3021161]
[1743088960865,0.00152,87416.0,87415.0,0.3021161]
[1743088961072,8e-05,87430.0,87415.0,0.3021161]
[1743088961073,8e-05,87430.0,87425.0,0.1144043]
[1743088961272,0.1716032,87430.0,87429.0,0.1715952]
[1743088961474,0.17272321,87430.0,87429.0,0.1721952]
[1743088962375,0.17572321,87430.0,87429.0,0.1721952]
[1743088962870,0.27352321,87430.0,87429.0,0.1721952]
[1743088963074,0.36722321,87430.0,87429.0,0.1721952]
[1743088963476,0.36722321,87430.0,87429.0,0.17846814]
[1743088963679,0.36822321,87430.0,87429.0,0.53926814]
[1743088963977,0.16012021,87430.0,87429.0,0.53926814]
[1743088964178,0.16012021,87430.0,87429.0,0.17846814]
[1743088965274,0.25282021,87430.0,87429.0,0.17846814]
[1743088965578,0.25382021,87430.0,87429.0,0.17846814]
[1743088969875,0.25382021,87430.0,87429.0,0.06407174]
[1743088970278,0.25382021,87430.0,87429.0,0.0006]
[1743088970585,0.114403,87426.0,87425.0,0.1144033]
[1743088970782,0.114403,87426.0,87425.0,0.1150033]
[1743088970982,0.114403,87426.0,87425.0,0.12116263]
[1743088970983,0.29962301,87426.0,87425.0,0.12116263]
[1743088971886,0.30062301,87426.0,87425.0,0.00675933]
[1743088972282,0.30162301,87426.0,87425.0,0.0006]
[1743088973293,0.1144082,87422.0,87421.0,0.11458112]
[1743088973491,0.11548821,87422.0,87421.0,0.11522112]
[1743088973692,0.29988821,87422.0,87421.0,0.11522112]
[1743088973899,0.29988821,87422.0,87421.0,0.00081162]
[1743088974211,0.29988821,87422.0,87421.0,0.11522112]
[1743088974394,0.29988821,87422.0,87421.0,0.00081162]
[1743088974595,0.1144305,87405.0,87402.0,0.1144343]
[1743088974790,0.1144305,87405.0,87404.0,0.2015752]
[1743088974990,0.7510105,87405.0,87404.0,0.2015752]
[1743088975392,0.1144357,87401.0,87400.0,0.1]
[1743088975593,0.114437,87400.0,87399.0,0.26726484]
[1743088975794,0.30087701,87400.0,87399.0,0.26726484]
[1743088976194,0.41528759,87400.0,87399.0,0.26726484]
[1743088976791,0.0572217,87396.0,87386.0,0.2696834]
[1743088976993,0.114454,87387.0,87386.0,0.2696834]
[1743088977199,0.11609401,87387.0,87386.0,0.2696834]
[1743088977398,0.11609401,87387.0,87386.0,0.3841388]
[1743088977698,0.23052226,87387.0,87386.0,0.3841388]
[1743088977904,0.41532226,87387.0,87386.0,0.3841388]
[1743088978094,0.42169143,87387.0,87386.0,0.3841388]
[1743088978397,0.30726318,87387.0,87386.0,0.3841388]
[1743088978600,0.42169733,87387.0,87386.0,0.2696834]
[1743088979189,0.42169733,87387.0,87386.0,0.3841388]
[1743088979393,0.30826318,87387.0,87386.0,0.2696834]
[1743088980400,0.30189401,87387.0,87386.0,0.39888392]
[1743088980600,0.30189401,87387.0,87386.0,0.48518392]
[1743088980994,0.11709401,87387.0,87386.0,0.4704388]
[1743088981201,0.115454,87387.0,87386.0,0.4704388]
[1743088981405,0.11709401,87387.0,87386.0,0.45210757]
[1743088981603,0.11709401,87387.0,87386.0,0.3593834]
[1743088981801,0.23794669,87387.0,87386.0,0.2696834]
[1743088981998,0.32334669,87387.0,87386.0,0.3841388]
[1743088982203,0.20891254,87387.0,87386.0,0.3841388]
[1743088982518,0.1144606,87383.0,87382.0,0.11446]
[1743088982695,0.11618061,87383.0,87382.0,0.21556828]
[1743088982896,0.29498061,87383.0,87382.0,0.01470828]
[1743088984509,0.29598061,87383.0,87382.0,0.01470828]
[1743088985211,0.1144645,87379.0,87378.0,0.1144657]
[1743088985507,0.11610451,87379.0,87378.0,0.1144657]
[1743088986407,0.00164001,87379.0,87362.0,0.1144862]
[1743088986718,0.1717236,87366.0,87365.0,0.1144829]
[1743088986905,0.1734036,87366.0,87365.0,0.1144829]
[1743088987712,0.1144842,87364.0,87363.0,0.1831]
[1743088987911,0.11620421,87364.0,87363.0,0.1831]
[1743088988311,0.29610421,87364.0,87363.0,0.1831]
[1743088988907,0.29610421,87364.0,87363.0,0.0914]
[1743088990306,0.00172001,87364.0,87363.0,0.2058855]
[1743088990509,0.001,87366.0,87365.0,0.1144829]
[1743088990713,0.0572377,87371.0,87370.0,0.114475]
[1743088990911,0.0572377,87371.0,87370.0,0.292775]
[1743088991235,0.05887771,87371.0,87370.0,0.292775]
[1743088991905,0.00164001,87371.0,87370.0,0.292775]
[1743088992212,8e-05,87375.0,87374.0,0.1144711]
[1743088992512,8e-05,87375.0,87374.0,0.87342114]
[1743088992712,0.1144675,87377.0,87376.0,0.1144685]
[1743088993201,0.11610751,87377.0,87376.0,0.2927685]
[1743088993401,0.11610751,87377.0,87376.0,0.298972]
[1743088993802,0.11610751,87377.0,87376.0,0.31382292]
[1743088994008,0.1144658,87379.0,87378.0,0.1716974]
[1743088994211,0.1161458,87379.0,87378.0,0.1716974]
[1743088994517,0.1144658,87379.0,87378.0,0.1716974]
[1743088994715,0.1144658,87379.0,87378.0,0.2380329]
[1743088994920,0.11610581,87379.0,87378.0,0.2380329]
[1743088995117,0.20910581,87379.0,87378.0,0.2380329]
[1743088995414,0.20910581,87379.0,87378.0,0.1808]
[1743088995622,0.20910581,87379.0,87378.0,0.2952658]
[1743088996112,0.30130581,87379.0,87378.0,0.2952658]
[1743088997414,0.30130581,87379.0,87378.0,0.19566244]
[1743088998017,0.20910581,87379.0,87378.0,0.31012824]
[1743088998314,0.11610581,87379.0,87378.0,0.31012824]
[1743088998623,0.00164001,87379.0,87378.0,0.31012824]
[1743088998814,8e-05,87381.0,87380.0,0.1144632]
[1743088999015,8e-05,87381.0,87380.0,0.12932564]
[1743088999218,0.1144614,87382.0,87380.0,0.12932564]
[1743088999219,0.1144614,87382.0,87381.0,0.1144619]
[1743088999414,0.11618141,87382.0,87381.0,0.49012434]
[1743088999617,0.00172001,87382.0,87381.0,0.66592434]
[1743088999817,0.00017162,87385.0,87384.0,0.114458]
[1743089000022,0.00017162,87385.0,87384.0,0.42066044]
[1743089000219,0.00017162,87385.0,87384.0,0.42093782]
[1743089001223,0.11462832,87385.0,87384.0,0.42093782]
[1743089001413,0.11626833,87385.0,87384.0,0.30109782]
[1743089001611,0.29626833,87385.0,87384.0,0.30109782]
[1743089002510,0.29626833,87385.0,87384.0,0.32528719]
[1743089004323,0.29626833,87385.0,87384.0,0.03932919]
[1743089004525,0.29626833,87385.0,87384.0,0.03942137]
[1743089004915,0.29626833,87385.0,87384.0,0.01513982]
[1743089006030,0.4107051,87385.0,87384.0,0.01513982]
[1743089006620,0.0572333,87378.0,87362.0,0.3608]
[1743089006820,0.1144754,87371.0,87370.0,0.0572381]
[1743089007120,0.00172001,87371.0,87370.0,0.08153968]
[1743089007320,0.09392001,87371.0,87370.0,0.2387381]
[1743089008228,0.09392001,87371.0,87370.0,0.5995381]
[1743089009022,0.0922,87371.0,87370.0,0.5995381]
[1743089009918,0.09388,87371.0,87370.0,0.5995381]
[1743089010122,0.296055,87371.0,87370.0,0.5995381]
[1743089010322,0.18158,87371.0,87370.0,0.5995381]
[1743089010721,8e-05,87374.0,87373.0,0.1144724]
[1743089011232,0.19386968,87386.0,87379.0,0.1144645]
[1743089011233,0.00017162,87385.0,87379.0,0.1144645]
[1743089011419,0.00141162,87385.0,87384.0,0.475258]
[1743089011623,0.00141162,87385.0,87384.0,0.595658]
[1743089011823,0.00133162,87385.0,87384.0,0.767658]
[1743089012323,0.00017162,87385.0,87384.0,0.767658]
[1743089012915,8e-05,87390.0,87389.0,0.1144514]
[1743089013118,8e-05,87395.0,87394.0,0.1144449]
[1743089013320,0.1144323,87404.0,87398.0,0.1144384]
[1743089013532,0.1144323,87404.0,87400.0,0.3608]
[1743089013720,0.31905924,87401.0,87400.0,0.3608]
[1743089013923,0.31905924,87401.0,87400.0,0.647637]
[1743089014234,0.32021924,87401.0,87400.0,0.647637]
[1743089014431,0.31905924,87401.0,87400.0,0.647637]
[1743089014925,0.31905924,87401.0,87400.0,0.5332]
[1743089015329,0.1144357,87401.0,87400.0,0.647637]
[1743089015624,0.1144357,87401.0,87400.0,0.5332]
[1743089015819,0.1144357,87401.0,87400.0,0.647637]
[1743089016235,0.1144357,87401.0,87400.0,0.5332]
[1743089016427,0.2054357,87401.0,87400.0,0.4427]
[1743089016725,0.2054357,87401.0,87392.0,0.00017162]
[1743089016726,0.1144462,87393.0,87392.0,0.00017162]
[1743089017625,0.2926462,87393.0,87392.0,0.00017162]
[1743089018730,0.2938062,87393.0,87392.0,0.00077162]
[1743089019233,0.2948062,87393.0,87392.0,0.00077162]
[1743089019534,0.2968062,87393.0,87392.0,0.00077162]
[1743089023035,0.3835062,87393.0,87392.0,0.00077162]
[1743089023233,0.1144501,87390.0,87389.0,0.3608]
[1743089023531,0.1144671,87377.0,87372.0,0.3608]
[1743089023728,0.1144671,87377.0,87376.0,0.0939]
[1743089024033,0.1144671,87377.0,87376.0,0.2083685]
[1743089024340,0.2008671,87377.0,87376.0,0.2083685]
[1743089024527,0.2008671,87377.0,87376.0,0.0939]
[1743089025137,0.2879671,87377.0,87376.0,0.0006]
[1743089025337,0.2894071,87377.0,87376.0,0.0006]
[1743089025532,0.2894071,87377.0,87376.0,0.09862876]
[1743089026127,0.2894071,87377.0,87376.0,0.21309726]
[1743089026329,0.29667138,87377.0,87376.0,0.21309726]
[1743089026632,0.2894071,87377.0,87376.0,0.21309726]
[1743089027333,0.2894071,87377.0,87376.0,0.29899726]
[1743089028633,0.2894071,87377.0,87376.0,0.299082]
[1743089030424,0.2894071,87377.0,87376.0,0.29905052]
[1743089031147,0.00144,87377.0,87376.0,0.29905052]
[1743089031334,0.10273622,87383.0,87382.0,0.1144606]
[1743089031527,0.10409622,87383.0,87382.0,0.5963406]
[1743089031830,0.00136,87383.0,87382.0,0.8578406]
[1743089032034,0.00017162,87385.0,87384.0,0.114458]
[1743089032339,0.00017162,87385.0,87384.0,0.115058]
[1743089032538,0.00017162,87385.0,87384.0,0.291958]
[1743089032940,0.00157163,87385.0,87384.0,0.291958]
[1743089033645,0.00017162,87385.0,87384.0,0.291958]
[1743089033943,0.00153162,87385.0,87384.0,0.291958]
[1743089034144,0.00017162,87385.0,87384.0,0.291958]
[1743089035040,8e-05,87392.0,87388.0,0.1144527]
[1743089035235,0.00746727,87413.0,87396.0,0.0572207]
[1743089035548,0.20598354,87407.0,87406.0,0.1144292]
[1743089035844,0.32041144,87407.0,87406.0,0.1150292]
[1743089036047,0.25262676,87407.0,87406.0,0.2869292]
[1743089036647,0.13819886,87407.0,87406.0,0.2869292]
[1743089037640,0.13683886,87407.0,87406.0,0.2869292]
[1743089037844,0.13783886,87407.0,87406.0,0.2869292]
[1743089038043,0.13919886,87407.0,87406.0,0.2869292]
[1743089038243,8e-05,87421.0,87413.0,0.11442]
[1743089038440,0.0572849,87421.0,87413.0,0.4759]
[1743089038639,8e-05,87421.0,87413.0,0.4759]
[1743089038846,0.1144085,87422.0,87421.0,0.0572041]
[1743089039047,0.32002914,87424.0,87423.0,0.1144069]
[1743089039346,0.32809682,87424.0,87423.0,0.1150069]
[1743089039645,0.32717682,87424.0,87423.0,0.1150069]
[1743089040849,0.12755328,87424.0,87423.0,0.1150069]
[1743089041545,0.13255328,87424.0,87423.0,0.1150069]
[1743089041749,0.0571855,87451.0,87443.0,0.0571897]
[1743089042053,0.37687194,87446.0,87445.0,0.1143781]
[1743089042253,0.37687194,87446.0,87445.0,0.1149781]
[1743089042549,0.26249254,87446.0,87445.0,0.1156581]
[1743089042748,0.31968034,87446.0,87445.0,0.1150581]
[1743089043144,0.32968034,87446.0,87445.0,0.1150581]
[1743089043547,0.32968034,87446.0,87445.0,0.2848581]
[1743089043953,0.32868034,87446.0,87445.0,0.2848581]
[1743089044761,0.32868034,87446.0,87445.0,0.2858581]
[1743089045062,0.32868034,87446.0,87445.0,0.2021581]
[1743089045258,0.32368034,87446.0,87445.0,0.00068]
[1743089045464,0.32768034,87446.0,87445.0,0.00068]
[1743089045763,0.114386,87439.0,87438.0,0.05042913]
[1743089045954,0.115066,87439.0,87438.0,0.05118913]
[1743089046955,0.35107209,87439.0,87438.0,0.05118913]
[1743089047157,0.35107209,87439.0,87438.0,0.05110913]
[1743089047456,0.0571999,87429.0,87420.0,0.3608]
[1743089047668,0.1144095,87421.0,87420.0,0.4758108]
[1743089048359,0.1144095,87421.0,87420.0,0.1150108]
[1743089048565,0.48336501,87421.0,87420.0,0.0006]
[1743089049066,0.48336501,87421.0,87420.0,0.0026]
[1743089049359,0.48336501,87421.0,87420.0,0.0046]
[1743089049871,0.48336501,87421.0,87420.0,0.004]
[1743089050468,0.11528951,87421.0,87420.0,0.1190108]
[1743089050858,0.12270368,87421.0,87420.0,0.0026]
[1743089051154,0.12870368,87421.0,87420.0,0.0006]
[1743089051361,0.11442,87413.0,87409.0,0.4752247]
[1743089051552,0.11442,87413.0,87412.0,0.11519292]
[1743089051553,0.1155,87413.0,87412.0,0.11519292]
[1743089052154,0.2044,87413.0,87412.0,0.11519292]
[1743089052355,0.2044,87413.0,87412.0,0.20209292]
[1743089052768,0.2044,87413.0,87412.0,0.28869292]
[1743089053265,0.2044,87413.0,87412.0,0.29587945]
[1743089054166,0.2064,87413.0,87412.0,0.29587945]
[1743089054368,0.2064,87413.0,87412.0,0.3106063]
[1743089054559,0.2064,87413.0,87412.0,0.31060694]
[1743089054760,0.2044,87413.0,87412.0,0.31060694]
[1743089055060,0.2044,87413.0,87412.0,0.31060573]
[1743089055262,0.2044,87413.0,87412.0,0.31060728]
[1743089055871,0.00108,87413.0,87412.0,0.31060728]
[1743089056165,0.1144158,87417.0,87416.0,0.1144161]
[1743089056466,0.11545581,87417.0,87416.0,0.49053758]
[1743089057377,0.19695581,87417.0,87416.0,0.49053758]
[1743089057668,0.08254001,87417.0,87416.0,0.49053758]
[1743089057868,0.1959148,87417.0,87416.0,0.49053758]
[1743089058066,0.1969948,87417.0,87416.0,0.37613336]
[1743089058273,0.1979948,87417.0,87416.0,0.37613336]
[1743089059073,0.1979948,87417.0,87416.0,0.3614]
[1743089059267,0.1969948,87417.0,87416.0,0.3614]
[1743089059469,0.1979948,87417.0,87416.0,0.37620751]
[1743089059869,0.1979948,87417.0,87416.0,0.49062361]
[1743089060465,0.1979948,87417.0,87416.0,0.37620751]
[1743089060765,0.1979948,87417.0,87416.0,0.49062361]
[1743089061170,0.2794948,87417.0,87416.0,0.49062361]
[1743089061368,0.2794948,87417.0,87416.0,0.01540751]
[1743089061565,0.11442,87413.0,87412.0,0.00017162]
[1743089061765,0.11562001,87413.0,87412.0,0.11519292]
[1743089061974,0.27782001,87413.0,87412.0,0.11519292]
[1743089062562,0.27782001,87413.0,87412.0,0.19669292]
[1743089062969,0.27882001,87413.0,87412.0,0.19669292]
[1743089063174,0.27882001,87413.0,87412.0,0.11519292]
[1743089063371,0.27882001,87413.0,87412.0,0.00077162]
[1743089063675,0.28696216,87413.0,87412.0,0.00077162]
[1743089063883,0.28696216,87413.0,87412.0,0.00017162]
[1743089064176,0.28696216,87413.0,87412.0,0.11459292]
[1743089064368,0.28796216,87413.0,87412.0,0.11579292]
[1743089067776,0.28796216,87413.0,87412.0,0.00137162]
[1743089067970,0.28796216,87413.0,87412.0,0.00017162]
[1743089068171,0.28796216,87413.0,87412.0,0.00085162]
[1743089071274,0.28796216,87413.0,87412.0,0.00017162]
[1743089073483,0.28796216,87413.0,87412.0,0.01514453]
[1743089074376,0.28794227,87413.0,87390.0,0.3608]
[1743089074576,0.1144423,87396.0,87395.0,0.0884]
[1743089074879,0.11564231,87396.0,87395.0,0.089]
[1743089075073,0.27784231,87396.0,87395.0,0.089]
[1743089076377,0.27784231,87396.0,87395.0,0.093]
[1743089077878,0.27784231,87396.0,87395.0,0.095]
[1743089078183,0.27784231,87396.0,87395.0,0.0066]
[1743089079695,0.1144527,87388.0,87382.0,0.0816]
[1743089079879,0.47665271,87388.0,87378.0,0.0887]
[1743089080078,0.65135271,87388.0,87378.0,0.2847658]
[1743089080286,0.65135271,87388.0,87378.0,0.3992309]
[1743089080489,0.65135271,87388.0,87378.0,0.1703]
[1743089080780,0.65135271,87388.0,87378.0,0.0887]
[1743089080971,0.76578555,87388.0,87378.0,0.0887]
[1743089081177,0.76578555,87388.0,87387.0,0.00417162]
[1743089081688,0.76678555,87388.0,87387.0,0.00517162]
[1743089084179,0.88630555,87388.0,87387.0,0.00517162]
[1743089085678,0.77187271,87388.0,87387.0,0.00517162]
[1743089091689,0.1144593,87383.0,87382.0,0.0817]
[1743089091897,0.11585931,87383.0,87382.0,0.09691577]
[1743089092097,0.1144685,87376.0,87375.0,0.0806]
[1743089092294,0.47666851,87376.0,87375.0,0.09645198]
[1743089092501,0.64616851,87376.0,87375.0,0.09585198]
[1743089092789,0.65339499,87376.0,87375.0,0.09649198]
[1743089093095,0.65339499,87376.0,87375.0,0.08124]
[1743089093393,0.64939499,87376.0,87375.0,0.0806]
[1743089093792,0.65039499,87376.0,87375.0,0.0816]
[1743089095091,0.65039499,87376.0,87375.0,0.096651]
[1743089095293,0.65039499,87376.0,87375.0,0.016051]
[1743089095495,0.76584354,87376.0,87375.0,0.001]
[1743089095684,0.88532354,87376.0,87375.0,0.001]
[1743089096395,0.1144776,87369.0,87368.0,0.0872]
[1743089096596,0.1159576,87369.0,87368.0,0.10287011]
[1743089096896,0.2825576,87369.0,87368.0,0.10287011]
[1743089097386,0.2825576,87369.0,87368.0,0.18657011]
[1743089099195,0.2825576,87369.0,87368.0,0.30104901]
[1743089099694,0.2825576,87369.0,87368.0,0.18657011]
[1743089099881,0.2825576,87369.0,87368.0,0.30104901]
[1743089100086,0.2825576,87369.0,87368.0,0.18657011]